bitfinex/quotes_SOLUSD_20220228
["timestamp","ask_amount","ask_price","bid_price","bid_amount"]
[1646007097038,6.0,85.692,85.615,117.2]
[1646007097238,6.0,85.692,85.617,117.2]
[1646007097438,6.0,85.692,85.618,9.0095162]
[1646007097645,48.493,85.695,85.618,9.0095162]
[1646007097940,2.74678921,85.713,85.62,2.74925418]
[1646007098144,28.83509109,85.72,85.623,2.60054665]
[1646007098344,28.83509109,85.72,85.626,2.75871832]
[1646007098543,7.22758725,85.719,85.629,44.14848489]
[1646007098739,7.22758725,85.719,85.631,2.4312778]
[1646007098941,7.22758725,85.719,85.634,2.36553282]
[1646007099140,7.22758725,85.719,85.636,117.2]
[1646007099340,7.22758725,85.719,85.637,123.2]
[1646007099541,7.22758725,85.719,85.638,3.10356884]
[1646007099745,7.22758725,85.719,85.639,6.0]
[1646007099941,28.83509109,85.718,85.639,6.0]
[1646007100142,6.0,85.717,85.629,44.14848489]
[1646007100345,27.98654628,85.717,85.629,44.14848489]
[1646007100546,28.83509109,85.716,85.629,44.14848489]
[1646007100848,7.6278541,85.715,85.629,44.14848489]
[1646007101153,10.37464331,85.715,85.629,44.14848489]
[1646007101354,1.72338538,85.713,85.629,44.14848489]
[1646007101548,17.5256,85.71,85.629,44.14848489]
[1646007101747,17.5256,85.71,85.621,3.00478248]
[1646007101748,7.4469323,85.709,85.62,47.7271]
[1646007101948,36.28202339,85.709,85.621,6.0]
[1646007102149,1.42391204,85.708,85.621,6.0]
[1646007102351,7.45755128,85.707,85.601,2.68709682]
[1646007102650,17.53,85.69,85.603,2.26843999]
[1646007102851,13.22758725,85.689,85.604,6.0]
[1646007103049,7.22758725,85.689,85.604,6.0]
[1646007103252,6.0,85.688,85.605,117.2]
[1646007103453,6.0,85.688,85.606,8.61719544]
[1646007105754,6.0,85.688,85.607,117.2]
[1646007105953,6.0,85.688,85.608,8.60816088]
[1646007106352,46.8132,85.705,85.609,117.2]
[1646007106553,6.0,85.704,85.612,2.6525115]
[1646007106752,6.0,85.704,85.615,2.47681392]
[1646007106953,6.0,85.704,85.618,2.86164315]
[1646007107156,6.0,85.704,85.621,2.371535]
[1646007107353,7.94947142,85.712,85.624,2.62977532]
[1646007107652,6.0,85.711,85.627,2.54693649]
[1646007107852,6.0,85.711,85.628,6.0]
[1646007108855,6.0,85.711,85.628,8.52824266]
[1646007109060,6.0,85.711,85.628,8.02824266]
[1646007109464,6.0,85.711,85.629,117.2]
[1646007109662,28.83509109,85.727,85.629,117.2]
[1646007109864,28.83509109,85.727,85.631,117.2]
[1646007110068,28.83509109,85.727,85.632,2.64003311]
[1646007110265,28.83509109,85.727,85.634,117.2]
[1646007110464,8.19345017,85.729,85.638,117.2]
[1646007110670,8.19345017,85.729,85.64,117.2]
[1646007110866,6.0,85.728,85.642,117.2]
[1646007111065,6.0,85.728,85.641,6.0]
[1646007111066,6.0,85.728,85.644,117.2]
[1646007111267,8.19345017,85.729,85.646,117.2]
[1646007111568,8.19345017,85.729,85.649,2.5220937]
[1646007111765,8.19345017,85.729,85.653,117.2]
[1646007111963,8.19345017,85.729,85.652,54.51091499]
[1646007111964,8.19345017,85.729,85.656,2.84168955]
[1646007112165,6.0,85.728,85.657,6.0]
[1646007112864,8.19345017,85.729,85.657,6.0]
[1646007113066,6.0,85.728,85.657,6.0]
[1646007113565,6.0,85.728,85.656,2.84168955]
[1646007113566,28.78673109,85.727,85.656,2.84168955]
[1646007113764,6.0,85.726,85.652,51.7488031]
[1646007113971,8.74678921,85.726,85.652,51.7488031]
[1646007114165,28.78673109,85.725,85.652,51.7488031]
[1646007114365,6.0,85.724,85.652,51.7488031]
[1646007114565,8.74678921,85.724,85.652,51.7488031]
[1646007114767,28.78673109,85.723,85.652,51.7488031]
[1646007114966,6.0,85.722,85.652,51.7488031]
[1646007115474,6.0,85.722,85.631,2.87905362]
[1646007115670,17.5237,85.72,85.631,2.87905362]
[1646007115972,6.0,85.719,85.631,2.87905362]
[1646007116173,55.96113238,85.719,85.631,2.87905362]
[1646007116375,53.21434317,85.719,85.631,2.87905362]
[1646007116573,2.74678921,85.718,85.633,3.11021526]
[1646007116771,2.00582223,85.716,85.633,3.11021526]
[1646007116969,6.0,85.715,85.633,3.11021526]
[1646007117170,17.5257,85.71,85.633,3.11021526]
[1646007117370,6.0,85.709,85.633,3.11021526]
[1646007117770,8.74678921,85.709,85.633,3.11021526]
[1646007118070,2.74678921,85.708,85.633,3.11021526]
[1646007118270,6.0,85.707,85.633,3.11021526]
[1646007118872,6.0,85.709,85.633,3.11021526]
[1646007119274,6.0,85.709,85.634,2.8676999]
[1646007119673,5.5,85.709,85.634,120.0676999]
[1646007119870,2.74678921,85.729,85.637,3.0848897]
[1646007120071,2.74678921,85.729,85.64,2.73718161]
[1646007120269,23.1969,85.739,85.64,2.73718161]
[1646007120470,23.1969,85.739,85.643,2.60326522]
[1646007120671,7.21647975,85.73,85.647,117.2]
[1646007120870,7.21647975,85.73,85.649,117.2]
[1646007121071,7.21647975,85.73,85.652,2.62512062]
[1646007121270,7.21647975,85.73,85.655,2.51826809]
[1646007121472,7.21647975,85.73,85.658,2.78869819]
[1646007121676,7.21647975,85.73,85.659,46.52638968]
[1646007121871,117.2,85.726,85.659,46.52638968]
[1646007122072,17.5237,85.72,85.659,46.52638968]
[1646007122276,6.0,85.719,85.659,46.52638968]
[1646007124276,17.5237,85.72,85.659,46.52638968]
[1646007124674,6.0,85.719,85.659,46.52638968]
[1646007126074,6.0,85.726,85.659,46.52638968]
[1646007126474,23.4767,85.727,85.659,46.52638968]
[1646007126876,23.4767,85.727,85.66,6.0]
[1646007128976,6.0,85.726,85.66,6.0]
[1646007129380,6.0,85.726,85.661,117.2]
[1646007129576,2.74678921,85.738,85.664,2.57100886]
[1646007129878,1.38148542,85.76,85.659,46.52638968]
[1646007129879,112.6,85.773,85.667,2.64079726]
[1646007130077,112.6,85.773,85.669,120.15632164]
[1646007130277,13.99299483,85.772,85.673,117.2]
[1646007130487,13.99299483,85.772,85.676,2.70116906]
[1646007130679,13.99299483,85.772,85.678,2.89926138]
[1646007130885,13.99299483,85.772,85.679,6.0]
[1646007131286,13.99299483,85.772,85.681,2.57339872]
[1646007131483,13.99299483,85.772,85.682,6.0]
[1646007132481,20.53621208,85.771,85.681,2.57339872]
[1646007132682,2.20627757,85.749,85.672,52.29792427]
[1646007132881,6.0,85.748,85.672,52.29792427]
[1646007133082,28.52954541,85.748,85.672,52.29792427]
[1646007133282,22.52954541,85.747,85.672,52.29792427]
[1646007133483,6.0,85.746,85.672,52.29792427]
[1646007134908,22.52954541,85.745,85.672,52.29792427]
[1646007135209,17.5196,85.74,85.672,52.29792427]
[1646007135405,7.68206896,85.739,85.672,52.29792427]
[1646007137607,30.21161437,85.739,85.672,52.29792427]
[1646007137907,28.52954541,85.739,85.672,52.29792427]
[1646007138510,1.6213037,85.738,85.672,52.29792427]
[1646007138709,7.97463911,85.736,85.672,52.29792427]
[1646007138911,6.0,85.735,85.672,52.29792427]
[1646007139208,7.49323915,85.735,85.672,52.29792427]
[1646007143720,6.0,85.735,85.672,52.29792427]
[1646007144418,7.97463911,85.736,85.673,2.52769406]
[1646007145421,14.05,85.76,85.673,2.52769406]
[1646007145620,6.0,85.758,85.673,2.52769406]
[1646007146422,32.18857468,85.757,85.673,2.52769406]
[1646007146619,6.0,85.756,85.673,2.52769406]
[1646007147421,7.78240785,85.756,85.672,52.29792427]
[1646007148922,6.0,85.756,85.673,2.81230744]
[1646007149122,6.0,85.758,85.674,6.0]
[1646007149321,6.0,85.758,85.675,2.6401828]
[1646007149520,6.0,85.758,85.676,6.0]
[1646007151623,28.52954541,85.758,85.676,6.0]
[1646007151824,2.34014062,85.749,85.674,49.0566]
[1646007152022,2.34014062,85.749,85.672,52.29792427]
[1646007152223,28.52954541,85.748,85.672,52.29792427]
[1646007152426,31.27633462,85.748,85.672,47.63192427]
[1646007153025,31.27633462,85.748,85.673,2.39514181]
[1646007153229,8.74678921,85.748,85.673,2.39514181]
[1646007153425,6.0,85.748,85.673,2.39514181]
[1646007154228,6.0,85.748,85.672,47.63192427]
[1646007154427,2.74678921,85.747,85.672,47.63192427]
[1646007154626,6.0,85.746,85.673,2.64924551]
[1646007155027,8.74678921,85.746,85.673,2.64924551]
[1646007156327,33.1436803,85.746,85.673,2.64924551]
[1646007162436,118.64561788,85.745,85.655,2.38225559]
[1646007162634,117.2,85.739,85.655,2.38225559]
[1646007162836,7.39263766,85.738,85.654,47.6967]
[1646007163034,14.05,85.73,85.654,47.6967]
[1646007163236,6.0,85.729,85.654,47.6967]
[1646007163439,7.85913178,85.728,85.654,48.96248623]
[1646007163635,6.0,85.727,85.654,48.96248623]
[1646007163840,2.34014062,85.709,85.654,48.96248623]
[1646007164035,6.0,85.708,85.654,48.96248623]
[1646007165137,6.0,85.708,85.624,2.86693822]
[1646007165436,6.0,85.708,85.623,45.6635]
[1646007165437,117.2,85.702,85.623,45.6635]
[1646007165639,19.32956953,85.707,85.623,45.6635]
[1646007165837,19.32956953,85.701,85.623,45.6635]
[1646007166038,6.0,85.7,85.623,45.6635]
[1646007166341,25.32956953,85.7,85.623,45.6635]
[1646007166536,17.5298,85.69,85.623,45.6635]
[1646007166739,6.0,85.689,85.623,45.6635]
[1646007167038,14.05,85.71,85.624,120.25737164]
[1646007167236,2.74678921,85.716,85.626,117.2]
[1646007167441,23.145,85.747,85.628,117.2]
[1646007167637,6.0,85.728,85.63,117.2]
[1646007167840,6.0,85.728,85.632,117.2]
[1646007168038,6.0,85.728,85.634,117.2]
[1646007168238,8.11769524,85.734,85.636,117.2]
[1646007168440,8.11769524,85.734,85.638,117.2]
[1646007168638,8.11769524,85.734,85.642,117.2]
[1646007168841,23.145,85.747,85.645,2.3995542]
[1646007169039,25.49755775,85.757,85.648,2.55930006]
[1646007169239,6.0,85.755,85.651,3.03800042]
[1646007169439,6.0,85.755,85.654,2.68685122]
[1646007169640,6.0,85.768,85.657,3.00423591]
[1646007169840,9.82539949,85.768,85.661,117.2]
[1646007170039,9.82539949,85.768,85.664,2.45144146]
[1646007170239,9.82539949,85.768,85.667,2.3682201]
[1646007170440,6.0,85.769,85.67,2.3509143]
[1646007170645,6.0,85.778,85.673,3.06958239]
[1646007170842,2.74678921,85.786,85.676,3.02385208]
[1646007171040,25.17463775,85.788,85.679,3.01491855]
[1646007171239,25.17463775,85.788,85.682,2.59425395]
[1646007171443,6.0,85.787,85.683,172.8188]
[1646007171740,6.0,85.787,85.684,2.68792508]
[1646007171940,6.0,85.787,85.687,2.71742699]
[1646007172344,6.0,85.787,85.691,117.2]
[1646007172541,6.0,85.787,85.69,16.31040345]
[1646007172542,6.0,85.787,85.694,3.03142772]
[1646007172740,6.0,85.787,85.697,2.37223772]
[1646007172940,6.0,85.787,85.699,117.2]
[1646007173140,6.0,85.787,85.702,2.52309896]
[1646007173344,6.0,85.788,85.705,2.68374388]
[1646007173543,7.94338969,85.787,85.708,52.6793302]
[1646007173741,6.0,85.786,85.709,2.58962834]
[1646007174144,31.17091109,85.786,85.709,2.58962834]
[1646007174344,31.17091109,85.786,85.708,50.1975754]
[1646007174645,25.8418603,85.785,85.708,50.1975754]
[1646007174845,6.0,85.784,85.708,50.1975754]
[1646007175046,6.0,85.784,85.709,3.1100972]
[1646007175251,6.0,85.784,85.71,6.0]
[1646007175448,23.09507109,85.785,85.711,117.2]
[1646007175654,23.09507109,85.799,85.714,2.95228534]
[1646007175874,23.09507109,85.799,85.717,2.67427252]
[1646007175875,6.0,85.798,85.717,2.67427252]
[1646007176048,23.09507109,85.799,85.719,117.2]
[1646007176248,6.0,85.798,85.722,2.8579119]
[1646007176450,23.09507109,85.825,85.725,3.04500499]
[1646007176649,6.0,85.822,85.728,2.28807324]
[1646007176849,6.0,85.822,85.731,2.43550312]
[1646007177051,6.0,85.822,85.734,2.30581519]
[1646007177250,6.0,85.822,85.733,117.2]
[1646007177251,6.0,85.824,85.735,6.0]
[1646007177453,6.0,85.824,85.737,2.44994664]
[1646007177652,10.08073421,85.823,85.739,59.68672329]
[1646007177853,6.0,85.822,85.74,2.64673375]
[1646007178052,31.8418603,85.822,85.741,3.01910984]
[1646007178251,29.09507109,85.822,85.741,3.01910984]
[1646007178451,2.74678921,85.821,85.742,6.0]
[1646007178652,6.0,85.82,85.741,3.01910984]
[1646007178853,6.0,85.82,85.742,6.0]
[1646007179056,2.74678921,85.819,85.742,6.0]
[1646007179254,6.0,85.818,85.742,6.0]
[1646007179655,2.74678921,85.817,85.742,6.0]
[1646007179858,6.0,85.816,85.742,6.0]
[1646007180257,2.74678921,85.815,85.742,6.0]
[1646007180458,6.0,85.814,85.742,6.0]
[1646007180859,2.74678921,85.814,85.742,6.0]
[1646007181058,10.08073421,85.823,85.742,6.0]
[1646007181460,6.0,85.822,85.742,6.0]
[1646007181664,17.5034,85.82,85.74,24.1461]
[1646007181861,7.7586128,85.819,85.74,24.1461]
[1646007182159,33.6004731,85.819,85.741,6.0]
[1646007182360,2.74678921,85.818,85.741,6.0]
[1646007182560,6.0,85.817,85.741,6.0]
[1646007183060,2.74678921,85.816,85.741,6.0]
[1646007183374,6.0,85.815,85.741,6.0]
[1646007183774,2.74678921,85.814,85.741,6.0]
[1646007183973,6.0,85.813,85.741,2.92376502]
[1646007184178,6.0,85.813,85.742,6.0]
[1646007184377,6.0,85.825,85.742,6.0]
[1646007184985,6.0,85.825,85.743,117.2]
[1646007185178,2.74678921,85.836,85.745,117.2]
[1646007185379,16.54252294,85.856,85.747,117.2]
[1646007185579,2.74678921,85.856,85.751,117.2]
[1646007185778,51.24598921,85.88,85.752,2.84680456]
[1646007185980,51.24598921,85.88,85.754,117.2]
[1646007186282,2.74678921,85.879,85.757,2.37643818]
[1646007186478,2.74678921,85.879,85.762,3.11870782]
[1646007186681,2.74678921,85.879,85.765,3.00228752]
[1646007186879,6.0,85.878,85.768,58.85967124]
[1646007187080,6.0,85.878,85.769,123.2]
[1646007187282,4.41510859,85.877,85.77,2.87730321]
[1646007187479,6.0,85.876,85.771,30.6746]
[1646007187682,117.2,85.875,85.772,2.30158728]
[1646007187881,6.0,85.874,85.773,6.0]
[1646007188080,6.0,85.874,85.774,24.0395]
[1646007188284,24.70236696,85.873,85.775,8.5939112]
[1646007188482,7.58699123,85.872,85.775,8.5939112]
[1646007188680,30.70236696,85.872,85.775,8.5939112]
[1646007188880,23.4434381,85.871,85.775,8.5939112]
[1646007189081,1.53991796,85.859,85.775,2.5939112]
[1646007189294,6.0,85.858,85.775,2.5939112]
[1646007189682,8.74678921,85.858,85.775,2.5939112]
[1646007189980,2.74678921,85.857,85.776,6.0]
[1646007190181,6.0,85.856,85.776,6.0]
[1646007190584,2.74678921,85.855,85.776,6.0]
[1646007190987,24.0417,85.868,85.776,6.0]
[1646007191187,7.39032382,85.867,85.776,6.0]
[1646007191387,10.13711303,85.867,85.776,6.0]
[1646007191583,2.74678921,85.866,85.776,6.0]
[1646007191783,6.0,85.865,85.776,6.0]
[1646007192185,2.74678921,85.864,85.776,6.0]
[1646007192388,6.0,85.863,85.776,6.0]
[1646007195500,117.2,85.862,85.776,6.0]
[1646007195687,117.2,85.859,85.774,24.0395]
[1646007195889,117.2,85.857,85.774,24.0395]
[1646007196087,7.79455106,85.856,85.774,24.0395]
[1646007196289,1.79455106,85.856,85.774,24.0395]
[1646007196493,117.2,85.854,85.774,24.0395]
[1646007196693,14.05,85.85,85.774,24.0395]
[1646007196890,1.52436292,85.848,85.774,24.0395]
[1646007197088,1.40069076,85.845,85.768,58.85967124]
[1646007197290,14.05,85.84,85.768,58.85967124]
[1646007197488,6.0,85.839,85.768,58.85967124]
[1646007197689,7.43677406,85.839,85.768,58.85967124]
[1646007197889,2.74678921,85.838,85.768,58.85967124]
[1646007198092,6.0,85.837,85.768,58.85967124]
[1646007198490,2.74678921,85.836,85.768,58.85967124]
[1646007198690,6.0,85.835,85.768,58.85967124]
[1646007199090,2.74678921,85.834,85.768,58.85967124]
[1646007199292,6.0,85.833,85.768,58.85967124]
[1646007199693,2.74678921,85.832,85.768,58.85967124]
[1646007199892,6.0,85.831,85.768,58.85967124]
[1646007200109,6.0,85.831,85.748,23.5022]
[1646007200110,17.5014,85.83,85.748,23.5022]
[1646007200294,6.0,85.829,85.723,2.7780249]
[1646007200492,117.2,85.828,85.724,23.3721]
[1646007200692,1.82044178,85.825,85.724,23.3721]
[1646007200894,117.2,85.823,85.724,23.3721]
[1646007201092,14.05,85.81,85.725,43.35909647]
[1646007201293,7.40992018,85.809,85.725,43.35909647]
[1646007201493,54.17224937,85.809,85.725,43.35909647]
[1646007201792,52.4957965,85.808,85.725,43.35909647]
[1646007201994,6.0,85.807,85.725,43.35909647]
[1646007202192,34.20029975,85.807,85.725,43.35909647]
[1646007202392,8.74678921,85.807,85.726,2.62820788]
[1646007202592,17.5076,85.8,85.726,2.62820788]
[1646007202792,6.0,85.799,85.726,2.62820788]
[1646007205901,24.0919,85.809,85.727,125.94678921]
[1646007206100,24.0919,85.809,85.728,3.04795045]
[1646007206299,24.0919,85.809,85.729,6.0]
[1646007207298,17.5029,85.83,85.729,6.0]
[1646007209197,17.5029,85.83,85.728,3.04795045]
[1646007209198,171.37224937,85.822,85.728,3.04795045]
[1646007209398,14.05,85.82,85.728,3.04795045]
[1646007209596,7.38066424,85.819,85.729,6.0]
[1646007209799,31.10929758,85.819,85.728,3.04795045]
[1646007209997,23.4894,85.818,85.728,3.04795045]
[1646007210200,6.0,85.817,85.728,3.04795045]
[1646007210397,54.17224937,85.817,85.728,3.04795045]
[1646007210599,17.5051,85.81,85.729,6.0]
[1646007210900,6.0,85.809,85.729,6.0]
[1646007211099,6.0,85.809,85.728,3.04795045]
[1646007211302,17.5051,85.81,85.728,3.04795045]
[1646007212003,24.44361603,85.809,85.725,43.35909647]
[1646007212199,1.69463428,85.808,85.725,43.35909647]
[1646007212501,28.17005683,85.808,85.725,43.35909647]
[1646007212701,17.5076,85.8,85.725,43.35909647]
[1646007212902,6.0,85.799,85.725,43.35909647]
[1646007214805,17.5094,85.79,85.725,43.35909647]
[1646007215009,6.0,85.789,85.725,43.35909647]
[1646007217309,117.2,85.788,85.725,43.35909647]
[1646007217516,17.5115,85.78,85.699,48.8679]
[1646007217717,7.60102744,85.779,85.699,48.8679]
[1646007218512,7.60102744,85.779,85.7,49.13532016]
[1646007218712,6.0,85.779,85.701,2.85110316]
[1646007220723,119.94678921,85.778,85.7,49.13532016]
[1646007220928,117.2,85.776,85.7,49.13532016]
[1646007221122,117.2,85.774,85.7,49.13532016]
[1646007221326,14.05,85.76,85.7,49.13532016]
[1646007221522,7.5934326,85.759,85.7,49.13532016]
[1646007221716,34.78383784,85.759,85.7,49.13532016]
[1646007221914,1.82251711,85.758,85.7,49.13532016]
[1646007222116,6.0,85.757,85.7,49.13532016]
[1646007222315,32.47542255,85.757,85.7,49.13532016]
[1646007222515,17.5173,85.75,85.7,49.13532016]
[1646007222718,6.0,85.749,85.7,49.13532016]
[1646007228324,6.0,85.759,85.7,49.13532016]
[1646007228926,6.0,85.769,85.701,2.92198911]
[1646007229524,6.0,85.769,85.7,49.13532016]
[1646007229725,17.5153,85.76,85.7,49.13532016]
[1646007229923,6.0,85.759,85.7,49.13532016]
[1646007230331,2.74678921,85.758,85.7,49.13532016]
[1646007230527,6.0,85.757,85.7,49.13532016]
[1646007230926,2.74678921,85.756,85.7,49.13532016]
[1646007231126,6.0,85.755,85.7,49.13532016]
[1646007231527,2.74678921,85.754,85.7,49.13532016]
[1646007231726,6.0,85.753,85.7,49.13532016]
[1646007232147,2.74678921,85.752,85.7,49.13532016]
[1646007232349,6.0,85.751,85.7,49.13532016]
[1646007232550,72.438,85.78,85.7,49.13532016]
[1646007232551,2.74678921,85.772,85.7,49.13532016]
[1646007233154,2.74678921,85.772,85.701,3.06247368]
[1646007234351,6.0,85.771,85.701,3.06247368]
[1646007242061,17.5141,85.77,85.7,49.13532016]
[1646007242358,6.0,85.769,85.7,49.13532016]
[1646007242560,32.47542255,85.769,85.7,49.13532016]
[1646007242759,54.0855827,85.769,85.7,49.13532016]
[1646007242960,54.0855827,85.769,85.672,4.665]
[1646007242961,1.59794375,85.767,85.672,4.665]
[1646007243170,117.2,85.765,85.672,4.665]
[1646007243362,117.2,85.763,85.672,4.665]
[1646007243562,14.05,85.76,85.672,4.665]
[1646007243766,7.63609378,85.759,85.672,4.665]
[1646007243963,10.38288299,85.759,85.673,49.44063096]
[1646007244266,2.74678921,85.758,85.673,49.44063096]
[1646007244466,17.5183,85.75,85.673,49.44063096]
[1646007244665,6.0,85.749,85.673,49.44063096]
[1646007244864,8.74678921,85.749,85.673,49.44063096]
[1646007245064,6.0,85.749,85.673,49.44063096]
[1646007245264,2.74678921,85.748,85.673,49.44063096]
[1646007245463,117.2,85.746,85.673,49.44063096]
[1646007245669,117.2,85.744,85.673,49.44063096]
[1646007245864,17.5206,85.74,85.673,49.44063096]
[1646007246067,6.0,85.739,85.673,49.44063096]
[1646007246469,8.74678921,85.739,85.673,49.44063096]
[1646007246868,119.94678921,85.738,85.672,4.665]
[1646007247068,117.2,85.736,85.672,4.665]
[1646007247367,117.2,85.734,85.672,4.165]
[1646007247567,17.5225,85.73,85.672,4.165]
[1646007247768,6.0,85.729,85.673,59.17540455]
[1646007248268,8.74678921,85.729,85.673,59.17540455]
[1646007248471,2.74678921,85.728,85.673,59.17540455]
[1646007248667,6.0,85.727,85.673,59.17540455]
[1646007249066,2.74678921,85.726,85.673,59.17540455]
[1646007249266,6.0,85.725,85.673,59.17540455]
[1646007249670,8.74678921,85.725,85.673,59.17540455]
[1646007252472,6.0,85.725,85.673,59.17540455]
[1646007252674,6.0,85.738,85.673,59.17540455]
[1646007252876,2.74678921,85.74,85.673,59.17540455]
[1646007253073,2.74678921,85.74,85.673,62.21734571]
[1646007253272,2.74678921,85.74,85.673,61.82194594]
[1646007254375,2.74678921,85.74,85.673,59.17540455]
[1646007254574,31.568,85.75,85.673,59.17540455]
[1646007254575,17.518,85.75,85.674,2.5543599]
[1646007254778,17.3824,85.763,85.675,24.839]
[1646007254978,17.3824,85.763,85.676,7.36946256]
[1646007255179,6.0,85.762,85.676,7.36946256]
[1646007255379,6.0,85.769,85.677,6.0]
[1646007255578,6.0,85.769,85.678,4.666]
[1646007255778,6.0,85.769,85.679,6.0]
[1646007255982,6.0,85.769,85.68,4.666]
[1646007256379,6.0,85.769,85.681,6.0]
[1646007256578,6.0,85.769,85.682,4.666]
[1646007256781,6.0,85.769,85.683,6.0]
[1646007257379,24.8599,85.768,85.684,23.7639]
[1646007257681,6.0,85.767,85.685,8.63424782]
[1646007257880,17.9041,85.779,85.685,8.63424782]
[1646007257881,17.9041,85.779,85.687,2.70970988]
[1646007258081,6.0,85.778,85.688,130.88810399]
[1646007258398,6.0,85.786,85.689,2.76011684]
[1646007258607,6.0,85.786,85.69,10.665]
[1646007258808,6.0,85.786,85.691,3.0834077]
[1646007259011,6.0,85.786,85.692,10.665]
[1646007259209,6.0,85.797,85.692,10.665]
[1646007259405,6.0,85.797,85.694,2.79590174]
[1646007259707,24.1249,85.81,85.697,2.7505818]
[1646007259904,17.7969,85.82,85.711,117.2]
[1646007260106,6.0,85.819,85.715,117.2]
[1646007260309,6.0,85.819,85.717,117.2]
[1646007260506,8.74678921,85.819,85.719,2.56084846]
[1646007260706,8.74678921,85.819,85.72,10.663]
[1646007261111,8.74678921,85.819,85.72,24.713]
[1646007261308,8.74678921,85.819,85.721,2.3848812]
[1646007261507,8.74678921,85.819,85.722,10.663]
[1646007261908,8.74678921,85.819,85.724,119.50163185]
[1646007262107,2.74678921,85.819,85.727,2.8839584]
[1646007262306,17.5036,85.83,85.729,117.2]
[1646007262507,17.5036,85.83,85.725,8.74678921]
[1646007262508,6.0,85.828,85.731,117.2]
[1646007262709,8.74678921,85.828,85.734,2.47058891]
[1646007262908,8.74678921,85.828,85.733,117.2]
[1646007262909,2.74678921,85.827,85.737,2.285596]
[1646007263110,6.0,85.826,85.738,6.0]
[1646007263312,6.0,85.826,85.735,6.0]
[1646007263511,2.74678921,85.825,85.732,6.0]
[1646007263715,6.0,85.824,85.725,6.0]
[1646007264111,2.74678921,85.823,85.725,6.0]
[1646007264312,6.0,85.822,85.725,6.0]
[1646007264711,2.74678921,85.821,85.725,6.0]
[1646007264911,6.0,85.82,85.725,6.0]
[1646007265112,6.0,85.82,85.724,2.73473638]
[1646007265312,133.41767314,85.819,85.724,2.73473638]
[1646007265513,117.2,85.817,85.724,2.73473638]
[1646007265719,26.03958921,85.818,85.724,2.73473638]
[1646007265913,6.0,85.817,85.725,6.0]
[1646007266119,2.74678921,85.816,85.727,2.4098018]
[1646007266317,2.74678921,85.816,85.729,2.70618695]
[1646007266517,2.74678921,85.816,85.731,117.2]
[1646007266715,2.74678921,85.816,85.734,3.0073914]
[1646007266917,2.74678921,85.816,85.737,2.88757379]
[1646007267114,23.2928,85.818,85.738,123.2]
[1646007267315,2.74678921,85.835,85.74,48.03178068]
[1646007267520,6.0,85.834,85.741,8.79272951]
[1646007267715,2.74678921,85.845,85.742,117.2]
[1646007267917,2.74678921,85.845,85.745,2.68612086]
[1646007267918,6.0,85.844,85.745,2.68612086]
[1646007268115,2.74678921,85.855,85.761,117.2]
[1646007268315,6.0,85.854,85.764,2.75753019]
[1646007268517,2.74678921,85.873,85.768,117.2]
[1646007268718,2.74678921,85.873,85.771,2.72416816]
[1646007268919,2.74678921,85.873,85.774,2.94001544]
[1646007269117,117.2,85.893,85.772,10.66]
[1646007269118,2.74678921,85.887,85.777,2.37120034]
[1646007269319,2.74678921,85.887,85.791,117.2]
[1646007269519,2.74678921,85.887,85.79,14.05]
[1646007269520,17.4891,85.9,85.793,117.2]
[1646007269719,17.4891,85.9,85.795,117.2]
[1646007269918,17.4891,85.9,85.81,14.05]
[1646007270119,17.4891,85.9,85.811,66.26157092]
[1646007270120,8.42854022,85.899,85.811,66.26157092]
[1646007270319,8.42854022,85.899,85.812,120.20656741]
[1646007270517,8.42854022,85.899,85.815,2.42982431]
[1646007270717,2.74678921,85.905,85.816,6.0]
[1646007270918,6.0,85.904,85.818,2.58357949]
[1646007271120,6.0,85.904,85.819,6.0]